fUSD/lending_fUSD_20240428
["ID","MTS","AMOUNT","RATE_DAILY","PERIOD"]
[324819883,1714343455548,-500.0,0.00012054,2]
[324819884,1714343455557,-910.96,0.00012055,2]
[324819885,1714343455567,-910.96,0.00012055,2]
[324819886,1714343455576,-910.18,0.00012055,2]
[324819887,1714343455586,-910.7,0.00012055,2]
[324819888,1714343455595,-355.05,0.00012099,2]
[324819889,1714343455604,-150.0,0.00012192,2]
[324819890,1714343455614,-522.29,0.00012192,2]
[324819891,1714343455623,-522.29,0.00012192,2]
[324819892,1714343455633,-150.0,0.00012192,2]
[324819893,1714343455642,-419.34,0.00012192,2]
[324819894,1714343455652,-522.29,0.00012192,2]
[324819895,1714343455663,-162.7,0.00012192,2]
[324819896,1714343455672,-419.34,0.00012192,2]
[324819897,1714343455681,-522.29,0.00012192,2]
[324819898,1714343455690,-419.34,0.00012192,2]
[324819899,1714343455700,-522.29,0.00012192,2]
[324819900,1714343455710,-531.07,0.00012192,2]
[324819901,1714343455720,-173.44820364,0.00012228,2]
[324819902,1714343455729,-226.49,0.00012327,2]
[324819903,1714343455738,-500.0,0.00012327,2]
[324819904,1714343455747,-213.77,0.00012327,2]
[324819905,1714343455756,-319.4,0.00012328,2]
[324819906,1714343455771,-500.0,0.00012328,2]
[324819907,1714343455780,-500.0,0.00012328,2]
[324819908,1714343455789,-500.0,0.00012328,2]
[324819909,1714343455800,-500.0,0.00012328,2]
[324819910,1714343455811,-500.0,0.00012328,2]
[324819911,1714343455821,-500.0,0.00012328,2]
[324819912,1714343455830,-500.0,0.00012328,2]
[324819913,1714343455839,-500.0,0.00012328,2]
[324819914,1714343455848,-500.0,0.00012328,2]
[324819915,1714343455858,-500.0,0.00012328,2]
[324819916,1714343455867,-500.0,0.00012328,2]
[324819917,1714343455876,-500.0,0.00012328,2]
[324819918,1714343455885,-500.0,0.00012328,2]
[324819919,1714343455894,-500.0,0.00012328,2]
[324819920,1714343455903,-500.0,0.00012328,2]
[324819921,1714343455915,-500.0,0.00012328,2]
[324819922,1714343455925,-500.0,0.00012328,2]
[324819923,1714343455934,-500.0,0.00012328,2]
[324819924,1714343455943,-500.0,0.00012328,2]
[324819925,1714343455952,-500.0,0.00012328,2]
[324819926,1714343455961,-500.0,0.00012328,2]
[324819927,1714343455970,-500.0,0.00012328,2]
[324819928,1714343455980,-500.0,0.00012328,2]
[324819929,1714343455988,-500.0,0.00012328,2]
[324819930,1714343455998,-500.0,0.00012328,2]
[324819931,1714343456008,-500.0,0.00012328,2]
[324819932,1714343456017,-500.0,0.00012328,2]
[324819933,1714343456026,-636.37,0.00012328,2]
[324819934,1714343456035,-508.5,0.00012328,2]
[324819935,1714343456045,-500.0,0.00012328,2]
[324819936,1714343456054,-500.0,0.00012328,2]
[324819937,1714343456063,-500.0,0.00012328,2]
[324819938,1714343456072,-2203.21,0.00012328,2]
[324819939,1714343456081,-500.0,0.00012328,2]
[324819940,1714343456091,-846.27,0.00012328,2]
[324819941,1714343456100,-500.0,0.00012328,2]
[324819942,1714343456109,-500.0,0.00012328,2]
[324819943,1714343456119,-500.0,0.00012328,2]
[324819944,1714343456128,-500.0,0.00012328,2]
[324819945,1714343456138,-500.0,0.00012328,2]
[324819946,1714343456148,-500.0,0.00012328,2]
[324819947,1714343456157,-895.2,0.00012328,2]
[324819948,1714343456169,-500.0,0.00012328,2]
[324819949,1714343456178,-500.0,0.00012328,2]
[324819950,1714343456188,-500.0,0.00012328,2]
[324819951,1714343456197,-500.0,0.00012328,2]
[324819952,1714343456205,-500.0,0.00012328,2]
[324819953,1714343456215,-500.0,0.00012328,2]
[324819954,1714343456225,-500.0,0.00012328,2]
[324819955,1714343456234,-937.3,0.00012328,2]
[324819956,1714343456243,-591.81,0.00012328,2]
[324819957,1714343456253,-1451.13,0.00012328,2]
[324819958,1714343456262,-798.94,0.00012328,2]
[324819959,1714343456272,-500.0,0.00012328,2]
[324819960,1714343456281,-612.25135617,0.00012328,2]
[324819961,1714343456290,-520.17,0.00012328,2]
[324819962,1714343456300,-374.28,0.00012328,2]
[324819963,1714343456309,-500.0,0.00012328,2]
[324819964,1714343456319,-500.0,0.00012328,2]
[324819965,1714343456329,-500.0,0.00012328,2]
[324819966,1714343456339,-500.0,0.00012328,2]
[324819967,1714343456347,-860.44,0.00012328,2]
[324819968,1714343456356,-500.0,0.00012328,2]
[324819969,1714343456365,-500.0,0.00012328,2]
[324819970,1714343456374,-500.0,0.00012328,2]
[324819971,1714343456383,-500.0,0.00012328,2]
[324819972,1714343456393,-504.45,0.00012328,2]
[324819973,1714343456402,-500.0,0.00012328,2]
[324819974,1714343456413,-500.0,0.00012328,2]
[324819975,1714343456423,-500.0,0.00012328,2]
[324819976,1714343456431,-500.0,0.00012328,2]
[324819977,1714343456440,-588.53,0.00012328,2]
[324819978,1714343456451,-500.0,0.00012328,2]
[324819979,1714343456460,-680.49,0.00012328,2]
[324819980,1714343456469,-500.0,0.00012328,2]
[324819981,1714343456478,-1529.68,0.00012328,2]
[324819982,1714343456487,-1644.34,0.00012328,2]
[324819983,1714343456496,-1259.48,0.00012328,2]
[324819984,1714343456509,-500.0,0.00012328,2]
[324819985,1714343456518,-1382.38,0.00012328,2]
[324819986,1714343456528,-500.0,0.00012328,2]
[324819987,1714343456539,-790.19,0.00012328,2]
[324819988,1714343456547,-14698.86,0.00012328,2]
[324819989,1714343456557,-1480.2,0.00012328,2]
[324819990,1714343456566,-4668.86,0.00012328,2]
[324819991,1714343456577,-967.76,0.00012328,2]
[324819992,1714343456587,-1236.8,0.00012328,2]
[324819993,1714343456596,-1427.43,0.00012328,2]
[324819994,1714343456607,-500.0,0.00012328,2]
[324819995,1714343456617,-607.38,0.00012328,2]
[324819996,1714343456626,-500.0,0.00012328,2]
[324819997,1714343456635,-500.0,0.00012328,2]
[324819998,1714343456644,-500.0,0.00012328,2]
[324819999,1714343456652,-964.69,0.00012328,2]
[324820000,1714343456662,-567.3,0.00012328,2]
[324820001,1714343456671,-500.0,0.00012328,2]
[324820002,1714343456679,-3822.79,0.00012328,2]
[324820003,1714343456688,-813.81,0.00012328,2]
[324820004,1714343456698,-3160.05,0.00012328,2]
[324820005,1714343456711,-4333.81,0.00012328,2]
[324820006,1714343456721,-500.0,0.00012328,2]
[324820007,1714343456733,-528.01,0.00012328,2]
[324820008,1714343456743,-500.0,0.00012328,2]
[324820009,1714343456754,-500.0,0.00012328,2]
[324820010,1714343456765,-500.0,0.00012328,2]
[324820011,1714343456778,-500.0,0.00012328,2]
[324820012,1714343456787,-574.87,0.00012328,2]
[324820013,1714343456797,-500.0,0.00012328,2]
[324820014,1714343456808,-500.0,0.00012328,2]
[324820015,1714343456817,-513.93,0.00012328,2]
[324820016,1714343456828,-471.16880277,0.00012328,2]
[324820017,1714343457093,-375.38415729,0.00012328,2]
[324820018,1714343457107,-225.61703994,0.00012328,2]
[324820019,1714343457117,-99.33960204,0.00012328,2]
[324820020,1714343457129,-1103.40039796,0.00012328,2]
[324820021,1714343457139,-500.0,0.00012328,2]
[324820022,1714343457149,-313.2859125,0.00012329,2]
[324820023,1714343457363,-500.0,0.00010958,2]
[324820024,1714343457372,-245.13698382,0.00010958,2]
[324820025,1714343457382,-134.6956814,0.00011232,2]
[324820026,1714343457394,-365.3043186,0.00011232,2]
[324820027,1714343457403,-500.0,0.00011232,2]
[324820028,1714343457417,-261.58256148,0.00011506,2]
[324820029,1714343457428,-42.06743852,0.00011506,2]
[324820030,1714343457437,-328.19456148,0.0001178,2]
[324820031,1714343457449,-171.80543852,0.0001178,2]
[324820032,1714343457458,-82.77506148,0.00012054,2]
[324820033,1714343457470,-417.22493852,0.00012054,2]
[324820034,1714343457480,-477.22827459,0.00012328,2]
[324820035,1714343457490,-267.7140875,0.00012329,2]
[324820036,1714343457499,-600.0,0.00012363,2]
[324820037,1714343457508,-251.74141407,0.000125,2]
[324820038,1714343457518,-250.26,0.00012601,2]
[324820039,1714343457527,-500.0,0.00012602,2]
[324820040,1714343457537,-500.0,0.00012602,2]
[324820041,1714343457546,-500.0,0.00012602,2]
[324820042,1714343457555,-500.0,0.00012602,2]
[324820043,1714343457564,-500.0,0.00012602,2]
[324820044,1714343457574,-500.0,0.00012602,2]
[324820045,1714343457583,-500.0,0.00012602,2]
[324820046,1714343457592,-500.0,0.00012602,2]
[324820047,1714343457602,-500.0,0.00012602,2]
[324820048,1714343457611,-500.0,0.00012602,2]
[324820049,1714343457621,-500.0,0.00012602,2]
[324820050,1714343457630,-500.0,0.00012602,2]
[324820051,1714343457639,-500.0,0.00012602,2]
[324820052,1714343457648,-266.25995652,0.00012602,2]
[324820053,1714343457658,-500.0,0.00012602,2]
[324820054,1714343457669,-482.68049462,0.00012602,2]
[324820055,1714343457693,-17.31950538,0.00012602,2]
[324820056,1714343457703,-178.39,0.00012602,2]
[324820057,1714343457712,-500.0,0.00012602,2]
[324820058,1714343457722,-500.0,0.00012602,2]
[324820059,1714343457732,-500.0,0.00012602,2]
[324820060,1714343457742,-500.0,0.00012602,2]
[324820061,1714343457751,-500.0,0.00012602,2]
[324820062,1714343457761,-500.0,0.00012602,2]
[324820063,1714343457773,-500.0,0.00012602,2]
[324820064,1714343457782,-500.0,0.00012602,2]
[324820065,1714343457792,-377.43,0.00012602,2]
[324820066,1714343457801,-636.37,0.00012602,2]
[324820067,1714343457811,-508.5,0.00012602,2]
[324820068,1714343457820,-500.0,0.00012602,2]
[324820069,1714343457830,-500.0,0.00012602,2]
[324820070,1714343457840,-384.68313536,0.00012602,2]
[324820071,1714343457853,-115.31686464,0.00012602,2]
[324820072,1714343457863,-1504.68313836,0.00012602,2]
[324820073,1714343457875,-257.59616578,0.00012602,2]
[324820074,1714343457886,-440.93069586,0.00012602,2]
[324820075,1714343457896,-500.0,0.00012602,2]
[324820076,1714343457906,-443.12683962,0.00012602,2]
[324820077,1714343457923,-403.14316038,0.00012602,2]
[324820078,1714343457934,-500.0,0.00012602,2]
[324820079,1714343457944,-500.0,0.00012602,2]
[324820080,1714343457953,-500.0,0.00012602,2]
[324820081,1714343457963,-56.85683962,0.00012602,2]
[324820082,1714343457986,-333.4495122,0.00012602,2]
[324820083,1714343457998,-109.69364818,0.00012602,2]
[324820084,1714343458008,-500.0,0.00012602,2]
[324820085,1714343458017,-500.0,0.00012602,2]
[324820086,1714343458027,-895.2,0.00012602,2]
[324820087,1714343458037,-500.0,0.00012602,2]
[324820088,1714343458048,-441.10635173,0.00012602,2]
[324820089,1714343458062,-58.89364827,0.00012602,2]
[324820090,1714343458072,-500.0,0.00012602,2]
[324820091,1714343458082,-500.0,0.00012602,2]
[324820092,1714343458091,-500.0,0.00012602,2]
[324820093,1714343458101,-500.0,0.00012602,2]
[324820094,1714343458110,-500.0,0.00012602,2]
[324820095,1714343458120,-937.3,0.00012602,2]
[324820096,1714343458129,-591.81,0.00012602,2]
[324820097,1714343458139,-1451.13,0.00012602,2]
[324820098,1714343458148,-798.94,0.00012602,2]
[324820099,1714343458158,-500.0,0.00012602,2]
[324820100,1714343458169,-520.17,0.00012602,2]
[324820101,1714343458178,-500.0,0.00012602,2]
[324820102,1714343458188,-500.0,0.00012602,2]
[324820103,1714343458197,-500.0,0.00012602,2]
[324820104,1714343458207,-500.0,0.00012602,2]
[324820105,1714343458216,-860.44,0.00012602,2]
[324820106,1714343458226,-500.0,0.00012602,2]
[324820107,1714343458235,-500.0,0.00012602,2]
[324820108,1714343458245,-500.0,0.00012602,2]
[324820109,1714343458255,-500.0,0.00012602,2]
[324820110,1714343458264,-504.45,0.00012602,2]
[324820111,1714343458273,-500.0,0.00012602,2]
[324820112,1714343458283,-500.0,0.00012602,2]
[324820113,1714343458292,-500.0,0.00012602,2]
[324820114,1714343458301,-500.0,0.00012602,2]
[324820115,1714343458310,-588.53,0.00012602,2]
[324820116,1714343458320,-500.0,0.00012602,2]
[324820117,1714343458329,-680.49,0.00012602,2]
[324820118,1714343458339,-500.0,0.00012602,2]
[324820119,1714343458348,-1529.68,0.00012602,2]
[324820120,1714343458358,-1644.34,0.00012602,2]
[324820121,1714343458368,-1259.48,0.00012602,2]
[324820122,1714343458378,-462.49,0.00012602,2]
[324820123,1714343458388,-1382.38,0.00012602,2]
[324820124,1714343458397,-500.0,0.00012602,2]
[324820125,1714343458407,-790.19,0.00012602,2]
[324820126,1714343458423,-14698.86,0.00012602,2]
[324820127,1714343458433,-1480.2,0.00012602,2]
[324820128,1714343458442,-4668.86,0.00012602,2]
[324820129,1714343458452,-967.76,0.00012602,2]
[324820130,1714343458462,-1236.8,0.00012602,2]
[324820131,1714343458472,-1427.43,0.00012602,2]
[324820132,1714343458483,-500.0,0.00012602,2]
[324820133,1714343458492,-607.38,0.00012602,2]
[324820134,1714343458503,-500.0,0.00012602,2]
[324820135,1714343458512,-500.0,0.00012602,2]
[324820136,1714343458522,-500.0,0.00012602,2]
[324820137,1714343458533,-964.69,0.00012602,2]
[324820138,1714343458543,-567.3,0.00012602,2]
[324820139,1714343458552,-500.0,0.00012602,2]
[324820140,1714343458563,-3822.79,0.00012602,2]
[324820141,1714343458573,-813.81,0.00012602,2]
[324820142,1714343458583,-3160.05,0.00012602,2]
[324820143,1714343458593,-4333.81,0.00012602,2]
[324820144,1714343458603,-500.0,0.00012602,2]
[324820145,1714343458613,-528.01,0.00012602,2]
[324820146,1714343458623,-500.0,0.00012602,2]
[324820147,1714343458816,-500.0,0.00012602,2]
[324820148,1714343458827,-500.0,0.00012602,2]
[324820149,1714343458838,-500.0,0.00012602,2]
[324820150,1714343458848,-574.87,0.00012602,2]
[324820151,1714343458859,-500.0,0.00012602,2]
[324820152,1714343458870,-500.0,0.00012602,2]
[324820153,1714343458880,-513.93,0.00012602,2]
[324820154,1714343458890,-1072.17,0.00012602,2]
[324820155,1714343458900,-1202.74,0.00012602,2]
[324820156,1714343458912,-495.22,0.00012602,2]
[324820157,1714343458922,-291.66,0.00012617,2]
[324820158,1714343458932,-400.0,0.00012705,2]
[324820159,1714343458941,-240.0,0.00012845,2]
[324820160,1714343458951,-500.0,0.00012875,2]
[324820161,1714343458960,-500.0,0.00012876,2]
[324820162,1714343458970,-500.0,0.00012876,2]
[324820163,1714343458979,-244.38577164,0.00012876,2]
[324820164,1714343458989,-500.0,0.00012876,2]
[324820165,1714343458998,-500.0,0.00012876,2]
[324820166,1714343459008,-500.0,0.00012876,2]
[324820167,1714343459017,-500.0,0.00012876,2]
[324820168,1714343459026,-219.51,0.00012876,2]
[324820169,1714343459036,-500.0,0.00012876,2]
[324820170,1714343459045,-500.0,0.00012876,2]
[324820171,1714343459055,-500.0,0.00012876,2]
[324820172,1714343459064,-500.0,0.00012876,2]
[324820173,1714343459074,-500.0,0.00012876,2]
[324820174,1714343459083,-500.0,0.00012876,2]
[324820175,1714343459093,-500.0,0.00012876,2]
[324820176,1714343459102,-500.0,0.00012876,2]
[324820177,1714343459111,-500.0,0.00012876,2]
[324820178,1714343459121,-500.0,0.00012876,2]
[324820179,1714343459130,-500.0,0.00012876,2]
[324820180,1714343459140,-500.0,0.00012876,2]
[324820181,1714343459150,-500.0,0.00012876,2]
[324820182,1714343459160,-277.29,0.00012876,2]
[324820183,1714343459170,-390.17540654,0.00012876,2]
[324820184,1714343459179,-636.37,0.00012876,2]
[324820185,1714343459189,-508.5,0.00012876,2]
[324820186,1714343459198,-402.68,0.00012876,2]
[324820187,1714343459208,-500.0,0.00012876,2]
[324820188,1714343459218,-500.0,0.00012876,2]
[324820189,1714343459226,-2203.21,0.00012876,2]
[324820190,1714343459235,-500.0,0.00012876,2]
[324820191,1714343459245,-846.27,0.00012876,2]
[324820192,1714343459254,-500.0,0.00012876,2]
[324820193,1714343459264,-500.0,0.00012876,2]
[324820194,1714343459274,-500.0,0.00012876,2]
[324820195,1714343459283,-500.0,0.00012876,2]
[324820196,1714343459292,-500.0,0.00012876,2]
[324820197,1714343459302,-500.0,0.00012876,2]
[324820198,1714343459311,-895.2,0.00012876,2]
[324820199,1714343459320,-500.0,0.00012876,2]
[324820200,1714343459329,-500.0,0.00012876,2]
[324820201,1714343459338,-500.0,0.00012876,2]
[324820202,1714343459347,-500.0,0.00012876,2]
[324820203,1714343459356,-500.0,0.00012876,2]
[324820204,1714343459366,-500.0,0.00012876,2]
[324820205,1714343459374,-500.0,0.00012876,2]
[324820206,1714343459383,-937.3,0.00012876,2]
[324820207,1714343459393,-591.81,0.00012876,2]
[324820208,1714343459402,-1451.13,0.00012876,2]
[324820209,1714343459412,-798.94,0.00012876,2]
[324820210,1714343459421,-500.0,0.00012876,2]
[324820211,1714343459431,-520.17,0.00012876,2]
[324820212,1714343459440,-500.0,0.00012876,2]
[324820213,1714343459450,-500.0,0.00012876,2]
[324820214,1714343459459,-500.0,0.00012876,2]
[324820215,1714343459467,-500.0,0.00012876,2]
[324820216,1714343459477,-860.44,0.00012876,2]
[324820217,1714343459486,-500.0,0.00012876,2]
[324820218,1714343459496,-500.0,0.00012876,2]
[324820219,1714343459505,-500.0,0.00012876,2]
[324820220,1714343459515,-500.0,0.00012876,2]
[324820221,1714343459524,-504.45,0.00012876,2]
[324820222,1714343459533,-500.0,0.00012876,2]
[324820223,1714343459542,-500.0,0.00012876,2]
[324820224,1714343459551,-500.0,0.00012876,2]
[324820225,1714343459560,-500.0,0.00012876,2]
[324820226,1714343459569,-588.53,0.00012876,2]
[324820227,1714343459578,-500.0,0.00012876,2]
[324820228,1714343459587,-680.49,0.00012876,2]
[324820229,1714343459596,-500.0,0.00012876,2]
[324820230,1714343459606,-1644.34,0.00012876,2]
[324820231,1714343459615,-1529.68,0.00012876,2]
[324820232,1714343459624,-1259.48,0.00012876,2]
[324820233,1714343459634,-1382.38,0.00012876,2]
[324820234,1714343459643,-500.0,0.00012876,2]
[324820235,1714343459652,-790.19,0.00012876,2]
[324820236,1714343459662,-14698.86,0.00012876,2]
[324820237,1714343459671,-1480.2,0.00012876,2]
[324820238,1714343459680,-4668.86,0.00012876,2]
[324820239,1714343459689,-1236.8,0.00012876,2]
[324820240,1714343459699,-967.76,0.00012876,2]
[324820241,1714343459708,-1427.43,0.00012876,2]
[324820242,1714343459718,-500.0,0.00012876,2]
[324820243,1714343459727,-607.38,0.00012876,2]
[324820244,1714343459736,-500.0,0.00012876,2]
[324820245,1714343459745,-500.0,0.00012876,2]
[324820246,1714343459755,-500.0,0.00012876,2]
[324820247,1714343459768,-964.69,0.00012876,2]
[324820248,1714343459778,-567.3,0.00012876,2]
[324820249,1714343459787,-533.35837519,0.00012876,2]
[324820250,1714343459796,-3822.79,0.00012876,2]
[324820251,1714343459807,-813.81,0.00012876,2]
[324820252,1714343459816,-3160.05,0.00012876,2]
[324820253,1714343459826,-4333.81,0.00012876,2]
[324820254,1714343459835,-500.0,0.00012876,2]
[324820255,1714343459846,-528.01,0.00012876,2]
[324820256,1714343459855,-500.0,0.00012876,2]
[324820257,1714343459865,-500.0,0.00012876,2]
[324820258,1714343459874,-500.0,0.00012876,2]
[324820259,1714343459885,-574.87,0.00012876,2]
[324820260,1714343459894,-500.0,0.00012876,2]
[324820261,1714343459903,-500.0,0.00012876,2]
[324820262,1714343459915,-513.93,0.00012876,2]
[324820263,1714343459924,-1072.17,0.00012876,2]
[324820264,1714343459934,-1202.74,0.00012876,2]
[324820265,1714343459944,-581.0,0.00012877,2]
[324820266,1714343459954,-1061.938399,0.000129,2]
[324820267,1714343459963,-10000.0,0.000129,2]
[324820268,1714343459972,-337.14485091,0.000129,2]
[324820269,1714343459982,-368.1999009,0.000129,2]
[324820270,1714343459991,-720.61432192,0.000129,2]
[324820271,1714343460000,-160.0,0.00012906,2]
[324820272,1714343460011,-157.042907,0.00012997,2]
[324820273,1714343460020,-157.042907,0.00012997,2]
[324820274,1714343460029,-157.042907,0.00012997,2]
[324820275,1714343460039,-157.042907,0.00012997,2]
[324820276,1714343460048,-157.042907,0.00012997,2]
[324820277,1714343460059,-710.23558579,0.00012998,2]
[324820278,1714343460069,-262.25935508,0.00012998,2]
[324820279,1714343460080,-157.042907,0.00012998,2]
[324820280,1714343460090,-157.042907,0.00012998,2]
[324820281,1714343460099,-157.042907,0.00012998,2]
[324820282,1714343460109,-157.042907,0.00012998,2]
[324820283,1714343460118,-157.042907,0.00012998,2]
[324820284,1714343460127,-39040.34192674,0.00012999,2]
[324820285,1714343460136,-500.0,0.00012999,2]
[324820286,1714343460146,-500.0,0.00012999,2]
[324820287,1714343460156,-467.36,0.00012999,2]
[324820288,1714343460168,-2966791.84648547,0.00013,2]
[324820289,1714343460183,-6434.3,0.00013,2]
[324820290,1714343460206,-13311.09075898,0.00013,2]
[324820291,1714343460234,-9136.80152,0.00013,2]
[324820292,1714343460595,-500.0,0.00010958,2]
[324820293,1714343460604,-257.41029778,0.000128,2]
[324820294,1714343460614,-168.09565219,0.00013,2]
[324820295,1714343460626,-427.149998,0.00013,2]
[324820296,1714343460637,-1502.81579274,0.00013,2]
[324820297,1714343460648,-322.4773321,0.00013,2]
[324820298,1714343460659,-2634.45984447,0.00013,2]
[324820299,1714343460672,-1003.24613563,0.00013,2]
[324820300,1714343460684,-300.0,0.00013,2]
[324820301,1714343460696,-840.00000001,0.00013,2]
[324820302,1714343460709,-500.0,0.00013,2]
[324820303,1714343460721,-6762.50845146,0.00013,2]
[324820304,1714343460734,-678.25000005,0.00013,2]
[324820305,1714343460745,-503.99410468,0.00013,2]
[324820306,1714343460804,-1281.77878028,0.00013,2]
[324820307,1714343460816,-1408.56636241,0.00013,2]
[324820308,1714343460828,-4704.000003,0.00013,2]
[324820309,1714343460839,-344.10978337,0.00013,2]
[324820310,1714343460884,-7233.0,0.00013,2]
[324820311,1714343460895,-258.80083264,0.00013,2]
[324820312,1714343460907,-1407.0,0.00013,2]
[324820313,1714343460922,-4847.88961838,0.00013,2]
[324820314,1714343460939,-650.42831958,0.00013,2]
[324820315,1714343460950,-8900.56235922,0.00013,2]
[324820316,1714343460961,-645.02567126,0.00013,2]
[324820317,1714343460973,-600.0000055,0.00013,2]
[324820318,1714343461022,-2013.4999997,0.00013,2]
[324820319,1714343461033,-328.04999985,0.00013,2]
[324820320,1714343461247,-155.0,0.00010957,2]
[324820321,1714343461257,-359.70621874,0.0001123,2]
[324820322,1714343461267,-520.83,0.00011231,2]
[324820323,1714343461275,-23673.93507168,0.00013,2]
[324820324,1714343461287,-58029.94600203,0.00013,2]
[324820325,1714343461299,-53231.14608123,0.00013,2]
[324820326,1714343461311,-3239.40199926,0.00013,2]
[324820327,1714343461323,-982.5,0.00013,2]
[324820328,1714343461340,-11026.5985078,0.00013,2]
[324820329,1714343461352,-800.8,0.00013,2]
[324820330,1714343461364,-447.99230466,0.00013,2]
[324820331,1714343461375,-8760.27938769,0.00013,2]
[324820332,1714343461387,-258.23503088,0.00013,2]
[324820333,1714343461409,-500.0,0.00010958,2]
[324820334,1714343461425,-5289.23275758,0.00013,2]
[324820335,1714343461437,-5700.0,0.00013,2]
[324820336,1714343461454,-3975.80907621,0.00013,2]
[324820337,1714343461466,-6293.32144232,0.00013,2]
[324820338,1714343461478,-36590.05920807,0.00013,2]
[324820339,1714343461489,-10626.67261,0.00013,2]
[324820340,1714343461500,-15244.77312,0.00013,2]
[324820341,1714343461517,-2500.0,0.00013,2]
[324820342,1714343461528,-1374.97521,0.00013,2]
[324820343,1714343461539,-2287.15044994,0.00013,2]
[324820344,1714343461550,-661.85250609,0.00013,2]
[324820345,1714343461561,-32822.62256101,0.00013,2]
[324820346,1714343461573,-396.87088712,0.00013,2]
[324820347,1714343461585,-626.10924374,0.00013,2]
[324820348,1714343461607,-748.25800005,0.00010957,2]
[324820349,1714343461618,-885.55099762,0.00010957,2]
[324820350,1714343461636,-2700.62351832,0.00010957,2]
[324820351,1714343461646,-34113.23273681,0.00013,2]
[324820352,1714343461658,-683.88504015,0.00013,2]
[324820378,1714344632417,-431.18512968,8.203e-05,2]
[324820379,1714344632523,-630.12150018,8.203e-05,2]
[324820380,1714344632533,-155.0,8.203e-05,2]
[324820381,1714344632543,-1609.24573252,8.204e-05,2]
[324820382,1714344632551,-408.64578529,8.205e-05,2]
[324820383,1714344632561,-186.21008607,8.206e-05,2]
[324820384,1714344632570,-155.0,8.206e-05,2]
[324820385,1714344632580,-4334.43251599,8.206e-05,2]
[324820386,1714344632589,-1995.80108278,8.207e-05,2]
[324820387,1714344632598,-271.35,8.219e-05,2]
[324820388,1714344632607,-150.0,8.291e-05,2]
[324820389,1714344632618,-150.0,8.291e-05,2]
[324820390,1714344632627,-150.0,8.301e-05,2]
[324820391,1714344632636,-1000.0,9.957e-05,2]
[324820392,1714344632645,-6411.21,9.957e-05,2]
[324820393,1714344632655,-175.11,9.972e-05,2]
[324820394,1714344632664,-250.0,0.0001006,2]
[324820395,1714344632674,-160.0,0.00010115,2]
[324820396,1714344632683,-23900.0,0.00010178,2]
[324820398,1714344632692,-413.92,0.00010207,2]
[324820399,1714344632705,-271.35,0.0001047,2]
[324820400,1714344632716,-156.87879733,0.00010751,2]
[324820401,1714344632728,-156.87879724,0.00010828,2]
[324820402,1714344632739,-488.9594,0.00010858,2]
[324820404,1714344632749,-308.203,0.00010858,2]
[324820406,1714344632759,-499.99,0.00010858,2]
[324820408,1714344632769,-156.87879724,0.00010906,2]
[324820410,1714344632778,-309.78010806,0.00010956,2]
[324820412,1714344632788,-180.16330246,0.00010956,2]
[324820414,1714344632797,-174.81635222,0.00010956,2]